[Event "Titled Tuesday Blitz March 22 Early 2022"]
[White "Molina, Roberto Junio Brito"]
[Black "Suarez Uriel, Adrian"]
[WhiteFideId "2109450"]
[BlackFideId "22230874"]
[WhiteElo "2432"]
[BlackElo "2316"]
[Result "1-0"]
[Round "05"]
[TimeControl "180+1"]
[Date "2022.03.22"]
[WhiteClock "0:00:48"]
[BlackClock "0:00:24"]

1. d4 {[%clk 0:03:00]}  Nf6 {[%clk 0:02:59]} 2. e3 {[%clk 0:03:01]}  g6 {[%clk 0:02:58]} 3. Nf3 {[%clk 0:03:02]}  Bg7 {[%clk 0:02:59]} 4. Be2 {[%clk 0:03:03]}  b6 {[%clk 0:02:58]} 5. O-O {[%clk 0:03:04]}  Bb7 {[%clk 0:02:59]} 6. c4 {[%clk 0:03:05]}  O-O {[%clk 0:02:59]} 7. b3 {[%clk 0:03:06]}  d5 {[%clk 0:02:59]} 8. Bb2 {[%clk 0:03:06]}  c5 {[%clk 0:02:59]} 9. dxc5 {[%clk 0:03:06]}  dxc4 {[%clk 0:02:53]} 10. Bxc4 {[%clk 0:03:02]}  bxc5 {[%clk 0:02:49]} 11. Nbd2 {[%clk 0:03:00]}  Nc6 {[%clk 0:02:46]} 12. Qe2 {[%clk 0:03:00]}  Nb4 {[%clk 0:02:35]} 13. a3 {[%clk 0:02:55]}  Nbd5 {[%clk 0:02:31]} 14. Rac1 {[%clk 0:02:54]}  Qb6 {[%clk 0:02:23]} 15. Rc2 {[%clk 0:02:45]}  Rfd8 {[%clk 0:02:22]} 16. Rfc1 {[%clk 0:02:45]}  Rac8 {[%clk 0:02:22]} 17. h3 {[%clk 0:02:42]}  Qa5 {[%clk 0:01:53]} 18. Ne5 {[%clk 0:02:36]}  Ne8 {[%clk 0:01:43]} 19. Qf3 {[%clk 0:02:25]}  Nef6 {[%clk 0:01:14]} 20. e4 {[%clk 0:02:09]}  e6 {[%clk 0:01:05]} 21. exd5 {[%clk 0:02:03]}  exd5 {[%clk 0:01:06]} 22. Bf1 {[%clk 0:01:58]}  Qb6 {[%clk 0:01:01]} 23. Ng4 {[%clk 0:01:49]}  d4 {[%clk 0:00:58]} 24. Nxf6+ {[%clk 0:01:46]}  Bxf6 {[%clk 0:00:58]} 25. Qg3 {[%clk 0:01:38]}  h5 {[%clk 0:00:48]} 26. Bc4 {[%clk 0:01:37]}  Kg7 {[%clk 0:00:47]} 27. Nf3 {[%clk 0:01:31]}  Be4 {[%clk 0:00:44]} 28. Re2 {[%clk 0:01:30]}  Bf5 {[%clk 0:00:45]} 29. Qf4 {[%clk 0:01:26]}  d3 {[%clk 0:00:44]} 30. Bxf6+ {[%clk 0:01:25]}  Qxf6 {[%clk 0:00:44]} 31. Rd2 {[%clk 0:01:23]}  Rd6 {[%clk 0:00:36]} 32. Qe5 {[%clk 0:01:20]}  Rcd8 {[%clk 0:00:33]} 33. Rcd1 {[%clk 0:01:18]}  a5 {[%clk 0:00:31]} 34. a4 {[%clk 0:01:17]}  g5 {[%clk 0:00:28]} 35. Qxf6+ {[%clk 0:01:15]}  Kxf6 {[%clk 0:00:28]} 36. Ne1 {[%clk 0:01:14]}  g4 {[%clk 0:00:26]} 37. hxg4 {[%clk 0:01:12]}  hxg4 {[%clk 0:00:27]} 38. Nxd3 {[%clk 0:01:07]}  Rd4 {[%clk 0:00:26]} 39. Kf1 {[%clk 0:01:05]}  Be4 {[%clk 0:00:26]} 40. Nxc5 {[%clk 0:00:49]}  Bxg2+ {[%clk 0:00:25]} 41. Kxg2 {[%clk 0:00:49]}  Rxd2 {[%clk 0:00:24]} 42. Rxd2 {[%clk 0:00:48]} 1-0


[Site "https://www.chess.com"]

[Event "Titled Tuesday Blitz March 22 Early 2022"]
[White "Moroni, Luca Jr"]
[Black "Svidler, Peter"]
[WhiteFideId "865834"]
[BlackFideId "4102142"]
[WhiteElo "2573"]
[BlackElo "2725"]
[Result "1-0"]
[Round "05"]
[TimeControl "180+1"]
[Date "2022.03.22"]
[WhiteClock "0:00:03"]
[BlackClock "0:00:19"]

1. d4 {[%clk 0:03:00]}  Nf6 {[%clk 0:02:58]} 2. c4 {[%clk 0:03:01]}  g6 {[%clk 0:02:57]} 3. Nc3 {[%clk 0:03:00]}  d5 {[%clk 0:02:58]} 4. cxd5 {[%clk 0:03:01]}  Nxd5 {[%clk 0:02:57]} 5. e4 {[%clk 0:03:02]}  Nxc3 {[%clk 0:02:58]} 6. bxc3 {[%clk 0:03:03]}  Bg7 {[%clk 0:02:58]} 7. Be3 {[%clk 0:03:03]}  c5 {[%clk 0:02:57]} 8. Qd2 {[%clk 0:03:03]}  cxd4 {[%clk 0:02:57]} 9. cxd4 {[%clk 0:03:03]}  Nc6 {[%clk 0:02:57]} 10. Nf3 {[%clk 0:02:58]}  Bg4 {[%clk 0:02:52]} 11. Rd1 {[%clk 0:02:50]}  O-O {[%clk 0:02:50]} 12. Be2 {[%clk 0:02:34]}  Qa5 {[%clk 0:02:30]} 13. Qxa5 {[%clk 0:02:20]}  Nxa5 {[%clk 0:02:30]} 14. Nd2 {[%clk 0:02:21]}  Bd7 {[%clk 0:02:27]} 15. O-O {[%clk 0:01:58]}  Rfc8 {[%clk 0:01:48]} 16. Rc1 {[%clk 0:01:54]}  Nc6 {[%clk 0:01:40]} 17. e5 {[%clk 0:01:49]}  Be6 {[%clk 0:01:31]} 18. a3 {[%clk 0:01:45]}  Bd5 {[%clk 0:01:14]} 19. Nc4 {[%clk 0:01:26]}  b5 {[%clk 0:01:08]} 20. Nd2 {[%clk 0:01:21]}  a6 {[%clk 0:01:08]} 21. Rc3 {[%clk 0:00:42]}  Na7 {[%clk 0:00:59]} 22. Rfc1 {[%clk 0:00:40]}  Rxc3 {[%clk 0:00:59]} 23. Rxc3 {[%clk 0:00:41]}  Rc8 {[%clk 0:00:59]} 24. Rxc8+ {[%clk 0:00:39]}  Nxc8 {[%clk 0:00:59]} 25. Bd3 {[%clk 0:00:34]}  Nb6 {[%clk 0:00:58]} 26. Ne4 {[%clk 0:00:31]}  e6 {[%clk 0:00:30]} 27. Nc5 {[%clk 0:00:24]}  Bf8 {[%clk 0:00:29]} 28. Nxa6 {[%clk 0:00:19]}  Bc4 {[%clk 0:00:29]} 29. Bxc4 {[%clk 0:00:16]}  Nxc4 {[%clk 0:00:28]} 30. Kf1 {[%clk 0:00:10]}  Bxa3 {[%clk 0:00:27]} 31. Ke2 {[%clk 0:00:10]}  b4 {[%clk 0:00:28]} 32. Kd3 {[%clk 0:00:10]}  b3 {[%clk 0:00:28]} 33. Nc7 {[%clk 0:00:05]}  Bb4 {[%clk 0:00:19]} 34. Nb5 {[%clk 0:00:03]}  Nb2+ {[%clk 0:00:19]} 35. Ke2 {[%clk 0:00:03]}  Na4 {[%clk 0:00:19]} 36. Kd3 {[%clk 0:00:03]}  Kf8 {[%clk 0:00:19]} 37. Bd2 {[%clk 0:00:04]}  b2 {[%clk 0:00:19]} 38. Bxb4+ {[%clk 0:00:03]} 1-0


[Site "https://www.chess.com"]

[Event "Titled Tuesday Blitz March 22 Early 2022"]
[White "Myshakov, Fyodor"]
[Black "Tsyhanchuk, Stanislav"]
[WhiteFideId "14111284"]
[BlackFideId "13505130"]
[WhiteElo "2310"]
[BlackElo "2078"]
[Result "1-0"]
[Round "05"]
[TimeControl "180+1"]
[Date "2022.03.22"]
[WhiteClock "0:00:47"]
[BlackClock "0:00:02"]

1. c4 {[%clk 0:02:52]}  c6 {[%clk 0:02:57]} 2. Nc3 {[%clk 0:02:53]}  d5 {[%clk 0:02:57]} 3. cxd5 {[%clk 0:02:53]}  cxd5 {[%clk 0:02:58]} 4. d4 {[%clk 0:02:54]}  Nc6 {[%clk 0:02:57]} 5. Nf3 {[%clk 0:02:55]}  Nf6 {[%clk 0:02:57]} 6. Bf4 {[%clk 0:02:55]}  a6 {[%clk 0:02:57]} 7. e3 {[%clk 0:02:56]}  Bf5 {[%clk 0:02:56]} 8. Bd3 {[%clk 0:02:57]}  Bg6 {[%clk 0:02:56]} 9. O-O {[%clk 0:02:57]}  e6 {[%clk 0:02:56]} 10. Ne5 {[%clk 0:02:56]}  Nxe5 {[%clk 0:02:12]} 11. Bxe5 {[%clk 0:02:57]}  Nd7 {[%clk 0:02:08]} 12. Bg3 {[%clk 0:02:50]}  Bb4 {[%clk 0:02:04]} 13. Na4 {[%clk 0:02:50]}  O-O {[%clk 0:02:02]} 14. Rc1 {[%clk 0:02:49]}  b5 {[%clk 0:02:00]} 15. Nc5 {[%clk 0:02:49]}  Nxc5 {[%clk 0:01:57]} 16. dxc5 {[%clk 0:02:50]}  Re8 {[%clk 0:01:39]} 17. a3 {[%clk 0:02:44]}  Ba5 {[%clk 0:01:39]} 18. Bxg6 {[%clk 0:02:40]}  hxg6 {[%clk 0:01:38]} 19. b4 {[%clk 0:02:40]}  Bc7 {[%clk 0:01:38]} 20. Bxc7 {[%clk 0:02:36]}  Qxc7 {[%clk 0:01:38]} 21. Qd3 {[%clk 0:02:36]}  Qc6 {[%clk 0:01:36]} 22. Rfe1 {[%clk 0:02:35]}  a5 {[%clk 0:01:34]} 23. e4 {[%clk 0:02:34]}  dxe4 {[%clk 0:01:27]} 24. Qxe4 {[%clk 0:02:34]}  Rec8 {[%clk 0:01:22]} 25. Qf4 {[%clk 0:02:25]}  axb4 {[%clk 0:01:21]} 26. axb4 {[%clk 0:02:26]}  Ra3 {[%clk 0:01:10]} 27. Red1 {[%clk 0:02:21]}  Qc7 {[%clk 0:01:00]} 28. Rd6 {[%clk 0:02:14]}  Ra4 {[%clk 0:00:47]} 29. Rcd1 {[%clk 0:01:58]}  Qxc5 {[%clk 0:00:23]} 30. h3 {[%clk 0:00:49]}  Rxb4 {[%clk 0:00:19]} 31. Rd8+ {[%clk 0:00:49]}  Rxd8 {[%clk 0:00:15]} 32. Rxd8+ {[%clk 0:00:50]}  Kh7 {[%clk 0:00:15]} 33. Qxf7 {[%clk 0:00:49]}  Rb1+ {[%clk 0:00:15]} 34. Kh2 {[%clk 0:00:49]}  Qe5+ {[%clk 0:00:15]} 35. f4 {[%clk 0:00:46]}  Qe1 {[%clk 0:00:01]} 36. Qg8+ {[%clk 0:00:46]}  Kh6 {[%clk 0:00:02]} 37. Qh8# {[%clk 0:00:47]} 1-0


[Site "https://www.chess.com"]

[Event "Titled Tuesday Blitz March 22 Early 2022"]
[White "Neiksans, Arturs"]
[Black "Martin Duque, Jesus"]
[WhiteFideId "11601388"]
[BlackFideId "2208954"]
[WhiteElo "2447"]
[BlackElo "2243"]
[Result "0-1"]
[Round "05"]
[TimeControl "180+1"]
[Date "2022.03.22"]
[WhiteClock "0:00:01"]
[BlackClock "0:00:36"]

1. e4 {[%clk 0:03:00]}  c5 {[%clk 0:02:59]} 2. Nf3 {[%clk 0:03:00]}  b6 {[%clk 0:03:00]} 3. g3 {[%clk 0:02:55]}  Bb7 {[%clk 0:03:00]} 4. Nc3 {[%clk 0:02:53]}  g6 {[%clk 0:02:57]} 5. Bg2 {[%clk 0:02:45]}  Nc6 {[%clk 0:02:56]} 6. d4 {[%clk 0:02:44]}  cxd4 {[%clk 0:02:56]} 7. Nxd4 {[%clk 0:02:44]}  Bg7 {[%clk 0:02:57]} 8. Be3 {[%clk 0:02:39]}  Rc8 {[%clk 0:02:44]} 9. O-O {[%clk 0:02:38]}  d6 {[%clk 0:02:43]} 10. Re1 {[%clk 0:02:34]}  Nf6 {[%clk 0:02:43]} 11. Nd5 {[%clk 0:02:26]}  Nd7 {[%clk 0:02:41]} 12. c3 {[%clk 0:02:03]}  O-O {[%clk 0:02:41]} 13. Qd2 {[%clk 0:02:01]}  Nce5 {[%clk 0:02:33]} 14. b3 {[%clk 0:01:59]}  Ng4 {[%clk 0:02:30]} 15. Bg5 {[%clk 0:01:53]}  Re8 {[%clk 0:02:15]} 16. h3 {[%clk 0:01:47]}  Ngf6 {[%clk 0:02:11]} 17. Rad1 {[%clk 0:01:42]}  Nc5 {[%clk 0:02:08]} 18. c4 {[%clk 0:01:34]}  Ne6 {[%clk 0:02:00]} 19. Nxe6 {[%clk 0:01:31]}  fxe6 {[%clk 0:02:00]} 20. Nxf6+ {[%clk 0:01:31]}  exf6 {[%clk 0:02:00]} 21. Be3 {[%clk 0:01:27]}  Bf8 {[%clk 0:01:58]} 22. Bd4 {[%clk 0:01:23]}  Rc7 {[%clk 0:01:50]} 23. Bb2 {[%clk 0:01:20]}  Rf7 {[%clk 0:01:47]} 24. Re3 {[%clk 0:01:18]}  Qa8 {[%clk 0:01:46]} 25. f4 {[%clk 0:01:15]}  d5 {[%clk 0:01:34]} 26. cxd5 {[%clk 0:01:08]}  Bc5 {[%clk 0:01:32]} 27. Bd4 {[%clk 0:01:07]}  exd5 {[%clk 0:01:12]} 28. Bxc5 {[%clk 0:01:03]}  bxc5 {[%clk 0:01:11]} 29. exd5 {[%clk 0:01:03]}  Rxe3 {[%clk 0:01:09]} 30. Qxe3 {[%clk 0:01:03]}  Qc8 {[%clk 0:01:07]} 31. Rc1 {[%clk 0:01:01]}  Qf5 {[%clk 0:01:01]} 32. Qxc5 {[%clk 0:00:53]}  Kg7 {[%clk 0:00:59]} 33. Kh2 {[%clk 0:00:53]}  h5 {[%clk 0:00:59]} 34. d6 {[%clk 0:00:50]}  Qd3 {[%clk 0:00:53]} 35. Bxb7 {[%clk 0:00:47]}  Rxb7 {[%clk 0:00:54]} 36. Qc6 {[%clk 0:00:40]}  Rb6 {[%clk 0:00:53]} 37. Qg2 {[%clk 0:00:28]}  Rxd6 {[%clk 0:00:52]} 38. h4 {[%clk 0:00:29]}  Qe3 {[%clk 0:00:51]} 39. Rc2 {[%clk 0:00:28]}  Kh6 {[%clk 0:00:50]} 40. Re2 {[%clk 0:00:27]}  Qc3 {[%clk 0:00:50]} 41. Qf2 {[%clk 0:00:26]}  a5 {[%clk 0:00:50]} 42. f5 {[%clk 0:00:25]}  g5 {[%clk 0:00:50]} 43. hxg5+ {[%clk 0:00:25]}  fxg5 {[%clk 0:00:48]} 44. Re6+ {[%clk 0:00:25]}  Rxe6 {[%clk 0:00:47]} 45. fxe6 {[%clk 0:00:26]}  Qe5 {[%clk 0:00:45]} 46. Qf8+ {[%clk 0:00:19]}  Kg6 {[%clk 0:00:45]} 47. Qg8+ {[%clk 0:00:16]}  Kh6 {[%clk 0:00:45]} 48. Qf8+ {[%clk 0:00:16]}  Kg6 {[%clk 0:00:46]} 49. Qf7+ {[%clk 0:00:17]}  Kh6 {[%clk 0:00:45]} 50. e7 {[%clk 0:00:07]}  Qe2+ {[%clk 0:00:45]} 51. Kg1 {[%clk 0:00:08]}  Qe1+ {[%clk 0:00:46]} 52. Kg2 {[%clk 0:00:08]}  Qe2+ {[%clk 0:00:46]} 53. Kh1 {[%clk 0:00:08]}  Qe1+ {[%clk 0:00:46]} 54. Kh2 {[%clk 0:00:09]}  Qe2+ {[%clk 0:00:46]} 55. Kg1 {[%clk 0:00:09]}  Qe1+ {[%clk 0:00:47]} 56. Kg2 {[%clk 0:00:09]}  Qe2+ {[%clk 0:00:47]} 57. Qf2 {[%clk 0:00:09]}  Qxe7 {[%clk 0:00:47]} 58. Qb6+ {[%clk 0:00:09]}  Kg7 {[%clk 0:00:46]} 59. Qxa5 {[%clk 0:00:09]}  Qe2+ {[%clk 0:00:46]} 60. Kg1 {[%clk 0:00:10]}  Qd1+ {[%clk 0:00:46]} 61. Kf2 {[%clk 0:00:09]}  Qc2+ {[%clk 0:00:46]} 62. Ke3 {[%clk 0:00:08]}  Qc1+ {[%clk 0:00:46]} 63. Ke4 {[%clk 0:00:08]}  Qc6+ {[%clk 0:00:46]} 64. Qd5 {[%clk 0:00:07]}  Qc2+ {[%clk 0:00:47]} 65. Ke5 {[%clk 0:00:07]}  Qe2+ {[%clk 0:00:40]} 66. Kd6 {[%clk 0:00:06]}  Qa6+ {[%clk 0:00:38]} 67. Ke7 {[%clk 0:00:05]}  Qf6+ {[%clk 0:00:38]} 68. Kd7 {[%clk 0:00:05]}  h4 {[%clk 0:00:37]} 69. gxh4 {[%clk 0:00:04]}  gxh4 {[%clk 0:00:38]} 70. a4 {[%clk 0:00:03]}  Qf7+ {[%clk 0:00:35]} 71. Qxf7+ {[%clk 0:00:02]}  Kxf7 {[%clk 0:00:36]} 72. a5 {[%clk 0:00:01]}  h3 {[%clk 0:00:37]} 73. b4 {[%clk 0:00:01]}  h2 {[%clk 0:00:37]} 74. b5 {[%clk 0:00:01]}  h1=Q {[%clk 0:00:37]} 75. Kc7 {[%clk 0:00:02]}  Ke7 {[%clk 0:00:36]} 76. a6 {[%clk 0:00:01]}  Qc1+ {[%clk 0:00:36]} 0-1


[Site "https://www.chess.com"]

[Event "Titled Tuesday Blitz March 22 Early 2022"]
[White "Olsen, Filip Boe"]
[Black "Tristan, Leonardo"]
[WhiteFideId "1440640"]
[BlackFideId "113816"]
[WhiteElo "2188"]
[BlackElo "2404"]
[Result "0-1"]
[Round "05"]
[TimeControl "180+1"]
[Date "2022.03.22"]
[WhiteClock "0:00:06"]
[BlackClock "0:00:09"]

1. d4 {[%clk 0:03:00]}  d5 {[%clk 0:02:59]} 2. Nf3 {[%clk 0:03:00]}  Nf6 {[%clk 0:03:00]} 3. Bf4 {[%clk 0:03:01]}  e6 {[%clk 0:03:00]} 4. e3 {[%clk 0:03:01]}  Bd6 {[%clk 0:03:01]} 5. Bg3 {[%clk 0:03:01]}  O-O {[%clk 0:03:01]} 6. c4 {[%clk 0:03:01]}  c5 {[%clk 0:02:51]} 7. Nc3 {[%clk 0:03:00]}  cxd4 {[%clk 0:02:46]} 8. Nxd4 {[%clk 0:03:01]}  Bb4 {[%clk 0:02:45]} 9. Qb3 {[%clk 0:02:39]}  Qa5 {[%clk 0:02:33]} 10. Nb5 {[%clk 0:02:32]}  Na6 {[%clk 0:02:27]} 11. a3 {[%clk 0:02:30]}  Ne4 {[%clk 0:02:15]} 12. Rc1 {[%clk 0:02:21]}  Bxc3+ {[%clk 0:01:53]} 13. Nxc3 {[%clk 0:02:16]}  Nac5 {[%clk 0:01:37]} 14. Qb5 {[%clk 0:02:09]}  Qxb5 {[%clk 0:01:28]} 15. Nxb5 {[%clk 0:02:10]}  Nb3 {[%clk 0:01:24]} 16. Rd1 {[%clk 0:02:07]}  Nxg3 {[%clk 0:01:18]} 17. hxg3 {[%clk 0:02:06]}  dxc4 {[%clk 0:00:59]} 18. Bxc4 {[%clk 0:02:03]}  Na5 {[%clk 0:01:00]} 19. Bd3 {[%clk 0:02:03]}  h6 {[%clk 0:01:00]} 20. Rh4 {[%clk 0:01:56]}  a6 {[%clk 0:00:41]} 21. Nd6 {[%clk 0:01:54]}  Rd8 {[%clk 0:00:42]} 22. Be4 {[%clk 0:01:34]}  f5 {[%clk 0:00:25]} 23. Bf3 {[%clk 0:01:32]}  g5 {[%clk 0:00:21]} 24. Ra4 {[%clk 0:01:28]}  Nb3 {[%clk 0:00:17]} 25. Nxf5 {[%clk 0:01:14]}  Rxd1+ {[%clk 0:00:12]} 26. Bxd1 {[%clk 0:01:15]}  Nc5 {[%clk 0:00:11]} 27. Rc4 {[%clk 0:01:15]}  exf5 {[%clk 0:00:08]} 28. Rxc5 {[%clk 0:01:15]}  Kf7 {[%clk 0:00:08]} 29. Rc7+ {[%clk 0:01:13]}  Kf6 {[%clk 0:00:08]} 30. Bb3 {[%clk 0:01:11]}  b5 {[%clk 0:00:07]} 31. Rh7 {[%clk 0:01:10]}  Kg6 {[%clk 0:00:08]} 32. Rh8 {[%clk 0:01:09]}  Bb7 {[%clk 0:00:07]} 33. Rxa8 {[%clk 0:01:09]}  Bxa8 {[%clk 0:00:08]} 34. f3 {[%clk 0:01:09]}  Kf6 {[%clk 0:00:08]} 35. Ke2 {[%clk 0:01:08]}  Ke5 {[%clk 0:00:08]} 36. Bc2 {[%clk 0:01:07]}  Bc6 {[%clk 0:00:08]} 37. Bd3 {[%clk 0:01:07]}  h5 {[%clk 0:00:08]} 38. Kf2 {[%clk 0:01:06]}  Kf6 {[%clk 0:00:08]} 39. e4 {[%clk 0:01:06]}  f4 {[%clk 0:00:07]} 40. gxf4 {[%clk 0:01:03]}  gxf4 {[%clk 0:00:08]} 41. Kg1 {[%clk 0:01:03]}  Ke5 {[%clk 0:00:07]} 42. Kf2 {[%clk 0:01:01]}  h4 {[%clk 0:00:07]} 43. Ke2 {[%clk 0:01:01]}  Kd4 {[%clk 0:00:07]} 44. Kd2 {[%clk 0:01:01]}  Bd7 {[%clk 0:00:06]} 45. Bf1 {[%clk 0:01:00]}  Bc6 {[%clk 0:00:05]} 46. b3 {[%clk 0:00:48]}  Bd7 {[%clk 0:00:05]} 47. Kc2 {[%clk 0:00:40]}  Ke3 {[%clk 0:00:04]} 48. a4 {[%clk 0:00:21]}  Kf2 {[%clk 0:00:04]} 49. Bd3 {[%clk 0:00:21]}  Kxg2 {[%clk 0:00:04]} 50. axb5 {[%clk 0:00:21]}  axb5 {[%clk 0:00:05]} 51. e5 {[%clk 0:00:22]}  h3 {[%clk 0:00:06]} 52. e6 {[%clk 0:00:03]}  Bxe6 {[%clk 0:00:06]} 53. Bxb5 {[%clk 0:00:03]}  h2 {[%clk 0:00:06]} 54. Bf1+ {[%clk 0:00:02]}  Kxf1 {[%clk 0:00:06]} 55. b4 {[%clk 0:00:02]}  h1=Q {[%clk 0:00:07]} 56. b5 {[%clk 0:00:02]}  Qxf3 {[%clk 0:00:08]} 57. b6 {[%clk 0:00:03]}  Qb3+ {[%clk 0:00:08]} 58. Kd2 {[%clk 0:00:03]}  Qxb6 {[%clk 0:00:08]} 59. Kc2 {[%clk 0:00:04]}  Qc5+ {[%clk 0:00:09]} 60. Kd2 {[%clk 0:00:05]}  Qd4+ {[%clk 0:00:09]} 61. Kc2 {[%clk 0:00:05]}  Bf5+ {[%clk 0:00:09]} 62. Kc1 {[%clk 0:00:05]}  Qc3+ {[%clk 0:00:09]} 63. Kd1 {[%clk 0:00:06]}  Bg4# {[%clk 0:00:09]} 0-1


[Site "https://www.chess.com"]

[Event "Titled Tuesday Blitz March 22 Early 2022"]
[White "Paravyan, David"]
[Black "Timofeev, Artyom"]
[WhiteFideId "4194985"]
[BlackFideId "4140419"]
[WhiteElo "2569"]
[BlackElo "2594"]
[Result "1/2-1/2"]
[Round "05"]
[TimeControl "180+1"]
[Date "2022.03.22"]
[WhiteClock "0:00:12"]
[BlackClock "0:01:02"]

1. e4 {[%clk 0:02:59]}  c5 {[%clk 0:03:00]} 2. Nf3 {[%clk 0:02:58]}  Nc6 {[%clk 0:02:59]} 3. d4 {[%clk 0:02:58]}  cxd4 {[%clk 0:02:59]} 4. Nxd4 {[%clk 0:02:59]}  e5 {[%clk 0:02:59]} 5. Nb5 {[%clk 0:02:59]}  a6 {[%clk 0:02:59]} 6. Nd6+ {[%clk 0:02:59]}  Bxd6 {[%clk 0:03:00]} 7. Qxd6 {[%clk 0:03:00]}  Qe7 {[%clk 0:03:00]} 8. Qd1 {[%clk 0:02:59]}  Nf6 {[%clk 0:03:00]} 9. Nc3 {[%clk 0:02:59]}  d6 {[%clk 0:03:00]} 10. Bg5 {[%clk 0:02:57]}  Be6 {[%clk 0:03:00]} 11. Nd5 {[%clk 0:02:51]}  Bxd5 {[%clk 0:02:58]} 12. exd5 {[%clk 0:02:51]}  Nb8 {[%clk 0:02:55]} 13. Bd3 {[%clk 0:02:49]}  Nbd7 {[%clk 0:02:55]} 14. c4 {[%clk 0:02:38]}  h6 {[%clk 0:02:53]} 15. Bh4 {[%clk 0:02:36]}  e4 {[%clk 0:02:49]} 16. Be2 {[%clk 0:02:25]}  e3 {[%clk 0:02:39]} 17. O-O {[%clk 0:02:03]}  O-O {[%clk 0:02:34]} 18. fxe3 {[%clk 0:01:58]}  Qxe3+ {[%clk 0:02:33]} 19. Bf2 {[%clk 0:01:59]}  Qg5 {[%clk 0:02:31]} 20. Qc1 {[%clk 0:01:51]}  Qe5 {[%clk 0:02:24]} 21. Bd3 {[%clk 0:01:33]}  Nc5 {[%clk 0:02:16]} 22. Bxc5 {[%clk 0:01:14]}  dxc5 {[%clk 0:02:16]} 23. Qc3 {[%clk 0:01:15]}  Qxc3 {[%clk 0:02:11]} 24. bxc3 {[%clk 0:01:16]}  Ne8 {[%clk 0:02:11]} 25. Rab1 {[%clk 0:01:04]}  Nd6 {[%clk 0:02:11]} 26. Rb6 {[%clk 0:01:03]}  Rfd8 {[%clk 0:02:11]} 27. Re1 {[%clk 0:01:03]}  Kf8 {[%clk 0:02:11]} 28. Kf2 {[%clk 0:01:03]}  Rd7 {[%clk 0:02:11]} 29. h4 {[%clk 0:00:55]}  Re8 {[%clk 0:02:10]} 30. Rxe8+ {[%clk 0:00:51]}  Kxe8 {[%clk 0:02:10]} 31. Kf3 {[%clk 0:00:51]}  Kd8 {[%clk 0:02:09]} 32. Rb1 {[%clk 0:00:44]}  Re7 {[%clk 0:02:03]} 33. Kf4 {[%clk 0:00:43]}  Kc7 {[%clk 0:01:57]} 34. g4 {[%clk 0:00:42]}  f6 {[%clk 0:01:43]} 35. Kf3 {[%clk 0:00:23]}  Re5 {[%clk 0:01:38]} 36. a4 {[%clk 0:00:16]}  a5 {[%clk 0:01:37]} 37. Rg1 {[%clk 0:00:14]}  Kd8 {[%clk 0:01:25]} 38. Kf4 {[%clk 0:00:14]}  Ke7 {[%clk 0:01:16]} 39. Rb1 {[%clk 0:00:13]}  Kd7 {[%clk 0:01:10]} 40. Rg1 {[%clk 0:00:12]}  Ke7 {[%clk 0:01:10]} 41. Rb1 {[%clk 0:00:11]}  Kd7 {[%clk 0:01:02]} 42. Rg1 {[%clk 0:00:12]}  Ke7 {[%clk 0:01:02]} 1/2-1/2


[Site "https://www.chess.com"]

[Event "Titled Tuesday Blitz March 22 Early 2022"]
[White "Perera Alfonso, Rene Humberto"]
[Black "Maltsevskaya, Aleksandra"]
[WhiteFideId "3514722"]
[BlackFideId "24174041"]
[WhiteElo "2313"]
[BlackElo "2241"]
[Result "1-0"]
[Round "05"]
[TimeControl "180+1"]
[Date "2022.03.22"]
[WhiteClock "0:00:16"]
[BlackClock "0:00:01"]

1. e4 {[%clk 0:03:00]}  c5 {[%clk 0:02:32]} 2. Nf3 {[%clk 0:02:59]}  e6 {[%clk 0:02:33]} 3. d4 {[%clk 0:02:59]}  cxd4 {[%clk 0:02:34]} 4. Nxd4 {[%clk 0:03:00]}  Nc6 {[%clk 0:02:34]} 5. Nc3 {[%clk 0:03:00]}  Nf6 {[%clk 0:02:33]} 6. Ndb5 {[%clk 0:02:59]}  Bc5 {[%clk 0:02:33]} 7. Bf4 {[%clk 0:02:59]}  O-O {[%clk 0:02:31]} 8. Bc7 {[%clk 0:02:58]}  Qe7 {[%clk 0:02:31]} 9. Bd6 {[%clk 0:02:58]}  Bxd6 {[%clk 0:02:31]} 10. Qxd6 {[%clk 0:02:59]}  Qd8 {[%clk 0:02:32]} 11. O-O-O {[%clk 0:02:57]}  a6 {[%clk 0:02:32]} 12. Nd4 {[%clk 0:02:49]}  Ne7 {[%clk 0:02:31]} 13. g4 {[%clk 0:02:31]}  b5 {[%clk 0:02:20]} 14. g5 {[%clk 0:02:30]}  Ne8 {[%clk 0:02:19]} 15. Qg3 {[%clk 0:02:21]}  b4 {[%clk 0:02:19]} 16. Nce2 {[%clk 0:02:20]}  d5 {[%clk 0:02:19]} 17. Bg2 {[%clk 0:02:19]}  Bb7 {[%clk 0:02:17]} 18. h4 {[%clk 0:02:18]}  Qa5 {[%clk 0:02:15]} 19. Kb1 {[%clk 0:02:17]}  dxe4 {[%clk 0:02:15]} 20. h5 {[%clk 0:02:16]}  e5 {[%clk 0:01:42]} 21. Nb3 {[%clk 0:02:13]}  Qc7 {[%clk 0:01:42]} 22. Qg4 {[%clk 0:01:58]}  a5 {[%clk 0:01:41]} 23. Bxe4 {[%clk 0:01:27]}  a4 {[%clk 0:01:16]} 24. Rd7 {[%clk 0:01:23]}  Qxd7 {[%clk 0:01:10]} 25. Qxd7 {[%clk 0:01:22]}  Bxe4 {[%clk 0:01:09]} 26. Nc5 {[%clk 0:01:08]}  Bxh1 {[%clk 0:01:01]} 27. Qxe7 {[%clk 0:01:07]}  Bc6 {[%clk 0:00:39]} 28. h6 {[%clk 0:01:05]}  Rc8 {[%clk 0:00:24]} 29. Qxe5 {[%clk 0:01:02]}  Rd8 {[%clk 0:00:14]} 30. Nd3 {[%clk 0:00:47]}  b3 {[%clk 0:00:13]} 31. Nd4 {[%clk 0:00:44]}  bxa2+ {[%clk 0:00:09]} 32. Kxa2 {[%clk 0:00:41]}  Bd5+ {[%clk 0:00:09]} 33. Ka3 {[%clk 0:00:41]}  Ba8 {[%clk 0:00:09]} 34. Nf5 {[%clk 0:00:39]}  f6 {[%clk 0:00:09]} 35. Qe6+ {[%clk 0:00:37]}  Rf7 {[%clk 0:00:09]} 36. hxg7 {[%clk 0:00:36]}  Bd5 {[%clk 0:00:08]} 37. Qb6 {[%clk 0:00:26]}  Rc8 {[%clk 0:00:04]} 38. Nh6+ {[%clk 0:00:24]}  Kxg7 {[%clk 0:00:04]} 39. Nxf7 {[%clk 0:00:23]}  Bxf7 {[%clk 0:00:05]} 40. gxf6+ {[%clk 0:00:21]}  Nxf6 {[%clk 0:00:05]} 41. Ne5 {[%clk 0:00:19]}  Bd5 {[%clk 0:00:02]} 42. c4 {[%clk 0:00:17]}  Bxc4 {[%clk 0:00:01]} 43. Qb7+ {[%clk 0:00:16]} 1-0


[Site "https://www.chess.com"]